[Event "Early-Titled-Tuesday-Blitz-May-28-2024"]
[Site "Chess.com"]
[Date "2024.05.28"]
[Round "7"]
[White "AlexPapasimakopoulos"]
[Black "Iball95"]
[Result "0-1"]
[WhiteElo "2623"]
[BlackElo "2842"]
[TimeControl "180+1"]
[EndTime "9:18:38 PDT"]
[Termination "Iball95 won by resignation"]

1. d4 {[%clk 0:03:00.9]} 1... d5 {[%clk 0:02:59.3]} 2. c4 {[%clk 0:03:01.2]}
2... e6 {[%clk 0:02:59.8]} 3. Nc3 {[%clk 0:03:01.4]} 3... c5 {[%clk 0:03:00.1]}
4. cxd5 {[%clk 0:03:01.7]} 4... cxd4 {[%clk 0:03:00.7]} 5. Qa4+ {[%clk
0:03:01.6]} 5... Bd7 {[%clk 0:03:00.4]} 6. Qxd4 {[%clk 0:03:01.8]} 6... exd5
{[%clk 0:03:01.1]} 7. Nf3 {[%clk 0:03:02]} 7... Nf6 {[%clk 0:03:00.7]} 8. Bg5
{[%clk 0:03:01.7]} 8... Be7 {[%clk 0:03:01]} 9. e3 {[%clk 0:03:01.4]} 9... Nc6
{[%clk 0:02:59.7]} 10. Qd1 {[%clk 0:03:01.4]} 10... h6 {[%clk 0:02:56.8]} 11.
Bh4 {[%clk 0:03:01.1]} 11... O-O {[%clk 0:02:54.3]} 12. Be2 {[%clk 0:03:01.2]}
12... Be6 {[%clk 0:02:53.4]} 13. O-O {[%clk 0:03:00.9]} 13... Qb6 {[%clk
0:02:53.1]} 14. a3 {[%clk 0:02:52.1]} 14... Rfd8 {[%clk 0:02:50.3]} 15. b4
{[%clk 0:02:51.6]} 15... Rd7 {[%clk 0:01:40.9]} 16. Nb5 {[%clk 0:02:48.7]} 16...
g5 {[%clk 0:01:37.9]} 17. Bg3 {[%clk 0:02:48.2]} 17... Ne4 {[%clk 0:01:38.3]}
18. Nbd4 {[%clk 0:02:48.5]} 18... Nxd4 {[%clk 0:01:38.6]} 19. Nxd4 {[%clk
0:02:47.4]} 19... Bf6 {[%clk 0:01:36.6]} 20. Rc1 {[%clk 0:02:42.6]} 20... a5
{[%clk 0:01:30.5]} 21. Bb5 {[%clk 0:02:34.5]} 21... Re7 {[%clk 0:01:18.4]} 22.
bxa5 {[%clk 0:02:32.8]} 22... Rxa5 {[%clk 0:01:10.6]} 23. a4 {[%clk 0:02:32.9]}
23... Ra8 {[%clk 0:01:10.3]} 24. Rc2 {[%clk 0:02:16.9]} 24... Nxg3 {[%clk
0:01:04.5]} 25. hxg3 {[%clk 0:02:16.5]} 25... Rc7 {[%clk 0:00:50.9]} 26. Rxc7
{[%clk 0:02:12.9]} 26... Qxc7 {[%clk 0:00:49.6]} 27. Qd3 {[%clk 0:02:12.6]}
27... Kg7 {[%clk 0:00:47.3]} 28. Nf5+ {[%clk 0:02:08.6]} 28... Bxf5 {[%clk
0:00:46.4]} 29. Qxf5 {[%clk 0:02:09.5]} 29... Qe5 {[%clk 0:00:43.8]} 30. Qd7
{[%clk 0:02:04.1]} 30... b6 {[%clk 0:00:33.7]} 31. Rc1 {[%clk 0:01:59.6]} 31...
Rd8 {[%clk 0:00:32.9]} 32. Qb7 {[%clk 0:01:57.8]} 32... d4 {[%clk 0:00:23.1]}
33. Qxb6 {[%clk 0:01:50.3]} 33... dxe3 {[%clk 0:00:21.8]} 34. Qxe3 {[%clk
0:01:51.2]} 34... Qxe3 {[%clk 0:00:22]} 35. fxe3 {[%clk 0:01:52.1]} 35... Be5
{[%clk 0:00:20.6]} 36. a5 {[%clk 0:01:47.4]} 36... Bxg3 {[%clk 0:00:18.2]} 37.
a6 {[%clk 0:01:47.5]} 37... Bb8 {[%clk 0:00:16.1]} 38. Kf2 {[%clk 0:01:45]}
38... Rd5 {[%clk 0:00:16.5]} 39. Rb1 {[%clk 0:01:39.6]} 39... Rf5+ {[%clk
0:00:15.8]} 40. Ke2 {[%clk 0:01:39.6]} 40... Ba7 {[%clk 0:00:16.2]} 41. Bc4
{[%clk 0:01:38.8]} 41... Re5 {[%clk 0:00:15.2]} 42. Rb3 {[%clk 0:01:38.9]} 42...
Kg6 {[%clk 0:00:13.9]} 43. Kf3 {[%clk 0:01:36]} 43... f5 {[%clk 0:00:13.2]} 44.
g3 {[%clk 0:01:32.7]} 44... g4+ {[%clk 0:00:12.5]} 45. Kf2 {[%clk 0:01:32.4]}
45... Kg5 {[%clk 0:00:12.8]} 46. Bb5 {[%clk 0:01:20.8]} 46... h5 {[%clk
0:00:12.6]} 47. Be2 {[%clk 0:01:20]} 47... Kg6 {[%clk 0:00:10.9]} 48. Rc3 {[%clk
0:01:09.3]} 48... Kg5 {[%clk 0:00:10.3]} 49. Rb3 {[%clk 0:01:08.9]} 49... h4
{[%clk 0:00:09.7]} 50. gxh4+ {[%clk 0:01:09.4]} 50... Kxh4 {[%clk 0:00:10.6]}
51. Rb7 {[%clk 0:01:03]} 51... Bxe3+ {[%clk 0:00:09.9]} 52. Kf1 {[%clk
0:01:03.4]} 52... f4 {[%clk 0:00:08.9]} 53. Rh7+ {[%clk 0:01:02.4]} 53... Kg3
{[%clk 0:00:08.3]} 54. Bc4 {[%clk 0:00:43.6]} 54... f3 {[%clk 0:00:07.6]} 55.
Ke1 {[%clk 0:00:36.6]} 55... Rc5 {[%clk 0:00:06.5]} 0-1

[Event "Early-Titled-Tuesday-Blitz-May-28-2024"]
[Site "Chess.com"]
[Date "2024.05.28"]
[Round "7"]
[White "RantomOpening"]
[Black "mortngabriel"]
[Result "0-1"]
[WhiteElo "2559"]
[BlackElo "2478"]
[TimeControl "180+1"]
[EndTime "9:18:45 PDT"]
[Termination "mortngabriel won by resignation"]

1. e4 {[%clk 0:03:00]} 1... c5 {[%clk 0:02:58.9]} 2. Nf3 {[%clk 0:03:00.1]} 2...
Nc6 {[%clk 0:02:57.9]} 3. d4 {[%clk 0:02:52.2]} 3... cxd4 {[%clk 0:02:58.8]} 4.
Nxd4 {[%clk 0:02:53.1]} 4... g6 {[%clk 0:02:58.5]} 5. Nc3 {[%clk 0:02:52.3]}
5... Bg7 {[%clk 0:02:57.4]} 6. Be3 {[%clk 0:02:52.5]} 6... Nf6 {[%clk
0:02:57.3]} 7. Qd2 {[%clk 0:02:51.6]} 7... O-O {[%clk 0:02:43.1]} 8. f3 {[%clk
0:02:49.2]} 8... d5 {[%clk 0:02:41.8]} 9. Nxc6 {[%clk 0:02:34.5]} 9... bxc6
{[%clk 0:02:41.6]} 10. O-O-O {[%clk 0:02:26.8]} 10... Qa5 {[%clk 0:02:31.9]} 11.
Kb1 {[%clk 0:02:24]} 11... dxe4 {[%clk 0:02:18.8]} 12. Nxe4 {[%clk 0:02:23.7]}
12... Qc7 {[%clk 0:01:58.4]} 13. Bf4 {[%clk 0:02:02.9]} 13... Qb6 {[%clk
0:01:54.3]} 14. Be3 {[%clk 0:02:02.2]} 14... Qc7 {[%clk 0:01:53.5]} 15. Nxf6+
{[%clk 0:02:00.9]} 15... Bxf6 {[%clk 0:01:52.5]} 16. Bd4 {[%clk 0:01:57.4]}
16... Rd8 {[%clk 0:01:43.6]} 17. Bd3 {[%clk 0:01:02.3]} 17... Rxd4 {[%clk
0:01:41.2]} 18. Rhe1 {[%clk 0:01:01.4]} 18... Bf5 {[%clk 0:01:31.3]} 19. Qe2
{[%clk 0:00:59.1]} 19... Bxd3 {[%clk 0:01:23.4]} 20. Rxd3 {[%clk 0:01:00]} 20...
Rxd3 {[%clk 0:01:23.6]} 21. Qxd3 {[%clk 0:01:00.4]} 21... Rb8 {[%clk 0:01:24.1]}
22. b3 {[%clk 0:00:59]} 22... Qxh2 {[%clk 0:01:24.1]} 23. Qa6 {[%clk 0:00:51.9]}
23... Qg3 {[%clk 0:01:15.1]} 24. Re2 {[%clk 0:00:46.8]} 24... Qd6 {[%clk
0:01:13.9]} 25. Qd3 {[%clk 0:00:35.8]} 25... Qa3 {[%clk 0:01:10.1]} 26. c3
{[%clk 0:00:33.8]} 26... a5 {[%clk 0:01:10]} 27. Qc2 {[%clk 0:00:29.5]} 27...
Qc5 {[%clk 0:01:06.2]} 28. Kb2 {[%clk 0:00:19.9]} 28... a4 {[%clk 0:01:05.4]}
29. Rd2 {[%clk 0:00:17.1]} 29... a3+ {[%clk 0:01:04.1]} 30. Kb1 {[%clk
0:00:17.4]} 30... Bxc3 {[%clk 0:00:56.4]} 31. Rd3 {[%clk 0:00:17.2]} 31... Bb4
{[%clk 0:00:46.2]} 32. Qxc5 {[%clk 0:00:17.3]} 32... Bxc5 {[%clk 0:00:46.3]} 33.
Rc3 {[%clk 0:00:18.2]} 33... Rb5 {[%clk 0:00:45.1]} 34. Kc2 {[%clk 0:00:18.9]}
34... e5 {[%clk 0:00:42.2]} 35. Kd3 {[%clk 0:00:18.8]} 35... Kf8 {[%clk
0:00:41.6]} 36. Rc4 {[%clk 0:00:18.5]} 36... Ke7 {[%clk 0:00:41.1]} 37. Rh4
{[%clk 0:00:18.5]} 37... h5 {[%clk 0:00:40.9]} 38. Ra4 {[%clk 0:00:18.6]} 38...
Rb4 {[%clk 0:00:37.9]} 39. Ra5 {[%clk 0:00:18]} 39... Rd4+ {[%clk 0:00:37.7]}
40. Kc2 {[%clk 0:00:17.6]} 40... Bb4 {[%clk 0:00:36.4]} 41. Rxe5+ {[%clk
0:00:17.7]} 41... Kf6 {[%clk 0:00:36.4]} 42. Re8 {[%clk 0:00:18.1]} 42... Rd2+
{[%clk 0:00:36.1]} 43. Kc1 {[%clk 0:00:19]} 43... Rxa2 {[%clk 0:00:35.5]} 44.
Re4 {[%clk 0:00:19.9]} 44... Rxg2 {[%clk 0:00:31.8]} 45. Rf4+ {[%clk 0:00:18.8]}
45... Kg5 {[%clk 0:00:30.9]} 46. Rxb4 {[%clk 0:00:18.5]} 46... a2 {[%clk
0:00:31]} 47. Ra4 {[%clk 0:00:18.9]} 47... Rg1+ {[%clk 0:00:31.6]} 48. Kd2
{[%clk 0:00:18.6]} 48... a1=Q {[%clk 0:00:32.5]} 49. f4+ {[%clk 0:00:16.5]}
49... Kf5 {[%clk 0:00:32]} 50. Rc4 {[%clk 0:00:16.4]} 50... Qb2+ {[%clk
0:00:31.5]} 51. Rc2 {[%clk 0:00:15.8]} 51... Qxb3 {[%clk 0:00:31.6]} 52. Rc5+
{[%clk 0:00:15]} 52... Kxf4 {[%clk 0:00:29.8]} 53. Rc4+ {[%clk 0:00:13.5]} 53...
Ke5 {[%clk 0:00:27.3]} 54. Rc5+ {[%clk 0:00:12.1]} 54... Kd4 {[%clk 0:00:26.2]}
55. Rc4+ {[%clk 0:00:10.4]} 55... Kxc4 {[%clk 0:00:27.1]} 56. Ke2 {[%clk
0:00:10.1]} 56... Rg2+ {[%clk 0:00:26.9]} 57. Ke1 {[%clk 0:00:06.7]} 57... Rc2
{[%clk 0:00:27.8]} 0-1

[Event "Early-Titled-Tuesday-Blitz-May-28-2024"]
[Site "Chess.com"]
[Date "2024.05.28"]
[Round "7"]
[White "Louis-Paulsen-Fan"]
[Black "Viacheslav92"]
[Result "1/2-1/2"]
[WhiteElo "2322"]
[BlackElo "2538"]
[TimeControl "180+1"]
[EndTime "9:18:47 PDT"]
[Termination "Game drawn by repetition"]

1. d4 {[%clk 0:03:00.9]} 1... Nf6 {[%clk 0:02:54.3]} 2. Nf3 {[%clk 0:03:00.9]}
2... e6 {[%clk 0:02:53.1]} 3. c4 {[%clk 0:03:01.4]} 3... d5 {[%clk 0:02:52.7]}
4. Nc3 {[%clk 0:03:01.7]} 4... Be7 {[%clk 0:02:48.5]} 5. Bg5 {[%clk 0:03:02]}
5... h6 {[%clk 0:02:33.1]} 6. Bh4 {[%clk 0:03:01.4]} 6... O-O {[%clk 0:02:33]}
7. e3 {[%clk 0:03:01.3]} 7... Ne4 {[%clk 0:02:28.5]} 8. Bxe7 {[%clk 0:02:57.8]}
8... Qxe7 {[%clk 0:02:29.4]} 9. Rc1 {[%clk 0:02:57.7]} 9... Nxc3 {[%clk
0:02:26.9]} 10. Rxc3 {[%clk 0:02:57]} 10... c6 {[%clk 0:02:27.5]} 11. Bd3 {[%clk
0:02:54.9]} 11... dxc4 {[%clk 0:02:27.1]} 12. Bxc4 {[%clk 0:02:54.8]} 12... Nd7
{[%clk 0:02:27.7]} 13. O-O {[%clk 0:02:54.6]} 13... e5 {[%clk 0:02:27.8]} 14.
Re1 {[%clk 0:02:52.2]} 14... exd4 {[%clk 0:02:21.6]} 15. exd4 {[%clk 0:02:51.7]}
15... Qd6 {[%clk 0:02:22.1]} 16. Ne5 {[%clk 0:02:31.7]} 16... Nb6 {[%clk
0:02:09.9]} 17. Bb3 {[%clk 0:02:14]} 17... Be6 {[%clk 0:02:05.6]} 18. Bxe6
{[%clk 0:02:07.6]} 18... fxe6 {[%clk 0:02:02.7]} 19. Qg4 {[%clk 0:01:59.3]}
19... Rf5 {[%clk 0:01:48.9]} 20. h4 {[%clk 0:01:50.1]} 20... Qe7 {[%clk
0:01:38.1]} 21. Rg3 {[%clk 0:01:45.4]} 21... Qf6 {[%clk 0:01:38.3]} 22. Qe2
{[%clk 0:01:07.5]} 22... Re8 {[%clk 0:01:21.5]} 23. Rg6 {[%clk 0:00:54.6]} 23...
Qxh4 {[%clk 0:01:19.8]} 24. Nf3 {[%clk 0:00:51.3]} 24... Qe7 {[%clk 0:01:10.1]}
25. Rxe6 {[%clk 0:00:39.8]} 25... Qxe6 {[%clk 0:01:09.3]} 26. Qxe6+ {[%clk
0:00:40.7]} 26... Rxe6 {[%clk 0:01:10.2]} 27. Rxe6 {[%clk 0:00:41.2]} 27... Nd5
{[%clk 0:01:03.1]} 28. Ne5 {[%clk 0:00:33.8]} 28... Rf6 {[%clk 0:00:58.8]} 29.
Re8+ {[%clk 0:00:29]} 29... Rf8 {[%clk 0:00:58.2]} 30. Re6 {[%clk 0:00:28.6]}
30... Rf4 {[%clk 0:00:56.8]} 31. Rd6 {[%clk 0:00:19.7]} 31... Rxd4 {[%clk
0:00:53.2]} 32. Rd7 {[%clk 0:00:20.2]} 32... Re4 {[%clk 0:00:31.3]} 33. Rd8+
{[%clk 0:00:10.5]} 33... Kh7 {[%clk 0:00:30.3]} 34. Nf3 {[%clk 0:00:10.7]} 34...
b6 {[%clk 0:00:28]} 35. Rd7 {[%clk 0:00:06.9]} 35... Rc4 {[%clk 0:00:24.2]} 36.
Rxa7 {[%clk 0:00:05.3]} 36... Rc1+ {[%clk 0:00:23.1]} 37. Kh2 {[%clk 0:00:05.3]}
37... Rc2 {[%clk 0:00:24]} 38. Kg3 {[%clk 0:00:05.7]} 38... Rxb2 {[%clk
0:00:23.1]} 39. Nh4 {[%clk 0:00:05.9]} 39... Nb4 {[%clk 0:00:20.4]} 40. Nf5
{[%clk 0:00:05.9]} 40... Rxa2 {[%clk 0:00:17.3]} 41. Rxg7+ {[%clk 0:00:06]}
41... Kh8 {[%clk 0:00:17.8]} 42. Rb7 {[%clk 0:00:06.7]} 42... Nd5 {[%clk
0:00:17.6]} 43. f3 {[%clk 0:00:06.7]} 43... Ra5 {[%clk 0:00:16.7]} 44. Kg4
{[%clk 0:00:05.9]} 44... Ra2 {[%clk 0:00:13.9]} 45. Kh5 {[%clk 0:00:05.8]} 45...
Rxg2 {[%clk 0:00:12.9]} 46. Kxh6 {[%clk 0:00:06.2]} 46... Rh2+ {[%clk
0:00:10.5]} 47. Kg6 {[%clk 0:00:06.6]} 47... Rg2+ {[%clk 0:00:10.6]} 48. Kh6
{[%clk 0:00:06.7]} 48... Rh2+ {[%clk 0:00:10.9]} 49. Kg6 {[%clk 0:00:07.1]}
49... Rg2+ {[%clk 0:00:11.3]} 50. Kh6 {[%clk 0:00:07.6]} 1/2-1/2

[Event "Early-Titled-Tuesday-Blitz-May-28-2024"]
[Site "Chess.com"]
[Date "2024.05.28"]
[Round "7"]
[White "crazy_but_lazy"]
[Black "GMMikhailKazakov"]
[Result "1-0"]
[WhiteElo "2667"]
[BlackElo "2510"]
[TimeControl "180+1"]
[EndTime "9:18:49 PDT"]
[Termination "crazy_but_lazy won on time"]

1. d4 {[%clk 0:02:56.8]} 1... Nf6 {[%clk 0:02:55.2]} 2. Nf3 {[%clk 0:02:56.8]}
2... e6 {[%clk 0:02:55.1]} 3. Bf4 {[%clk 0:02:56.6]} 3... b6 {[%clk 0:02:54.9]}
4. e3 {[%clk 0:02:53.4]} 4... Bb7 {[%clk 0:02:54.8]} 5. Be2 {[%clk 0:02:52.5]}
5... d5 {[%clk 0:02:51.4]} 6. O-O {[%clk 0:02:52.5]} 6... Bd6 {[%clk 0:02:51.3]}
7. Bxd6 {[%clk 0:02:47.8]} 7... cxd6 {[%clk 0:02:52.2]} 8. Nbd2 {[%clk
0:02:44.9]} 8... O-O {[%clk 0:02:50.1]} 9. a4 {[%clk 0:02:39.2]} 9... a5 {[%clk
0:02:47.2]} 10. c3 {[%clk 0:02:32.4]} 10... Re8 {[%clk 0:02:43]} 11. Bb5 {[%clk
0:02:30.3]} 11... Nbd7 {[%clk 0:02:40.7]} 12. c4 {[%clk 0:02:23.4]} 12... Qe7
{[%clk 0:02:34.2]} 13. Rc1 {[%clk 0:02:20]} 13... Rec8 {[%clk 0:02:32.7]} 14.
Qe2 {[%clk 0:02:16.3]} 14... h6 {[%clk 0:02:32.4]} 15. Rc2 {[%clk 0:02:14.3]}
15... dxc4 {[%clk 0:02:27.8]} 16. Nxc4 {[%clk 0:02:06]} 16... Nd5 {[%clk
0:02:24]} 17. e4 {[%clk 0:01:55.3]} 17... Nb4 {[%clk 0:02:19]} 18. Rc3 {[%clk
0:01:55.7]} 18... d5 {[%clk 0:01:56.7]} 19. Bxd7 {[%clk 0:01:51.5]} 19... Rxc4
{[%clk 0:01:53.1]} 20. Rxc4 {[%clk 0:01:46.1]} 20... dxc4 {[%clk 0:01:53.7]} 21.
Bb5 {[%clk 0:01:45.7]} 21... Rc8 {[%clk 0:01:41.5]} 22. Bxc4 {[%clk 0:01:39.3]}
22... Bxe4 {[%clk 0:01:36.7]} 23. Qxe4 {[%clk 0:01:32.1]} 23... Rxc4 {[%clk
0:01:35.6]} 24. Qa8+ {[%clk 0:01:30.6]} 24... Qf8 {[%clk 0:01:30.8]} 25. Qb7
{[%clk 0:01:28.7]} 25... Qd6 {[%clk 0:01:09.7]} 26. Ne5 {[%clk 0:01:13]} 26...
Rc7 {[%clk 0:01:02.6]} 27. Qb8+ {[%clk 0:01:13.2]} 27... Kh7 {[%clk 0:01:00.3]}
28. Nxf7 {[%clk 0:01:13.8]} 28... Qe7 {[%clk 0:00:39.8]} 29. Qh8+ {[%clk
0:01:03.7]} 29... Kg6 {[%clk 0:00:39.7]} 30. Ne5+ {[%clk 0:01:04.6]} 30... Kf6
{[%clk 0:00:38.4]} 31. h4 {[%clk 0:00:55.2]} 31... Nd5 {[%clk 0:00:35.8]} 32.
Qh7 {[%clk 0:00:45.3]} 32... Qe8 {[%clk 0:00:30]} 33. Qe4 {[%clk 0:00:32.4]}
33... Ke7 {[%clk 0:00:22.9]} 34. Re1 {[%clk 0:00:27.2]} 34... Kf8 {[%clk
0:00:17.8]} 35. Qh7 {[%clk 0:00:25.3]} 35... Ke7 {[%clk 0:00:13.3]} 36. Qxg7+
{[%clk 0:00:20.7]} 36... Kd6 {[%clk 0:00:13.6]} 37. Qxh6 {[%clk 0:00:17.9]}
37... Qg8 {[%clk 0:00:10.4]} 38. Qg5 {[%clk 0:00:15.3]} 38... Rg7 {[%clk
0:00:09.1]} 39. Nc4+ {[%clk 0:00:12.7]} 39... Kd7 {[%clk 0:00:06.7]} 40. Qe5
{[%clk 0:00:05.6]} 40... Rxg2+ {[%clk 0:00:04.1]} 41. Kf1 {[%clk 0:00:06.4]}
41... Rg1+ {[%clk 0:00:03.5]} 42. Ke2 {[%clk 0:00:07.1]} 42... Qg4+ {[%clk
0:00:03.1]} 43. Kd2 {[%clk 0:00:07.3]} 43... Rxe1 {[%clk 0:00:01.7]} 44. Kxe1
{[%clk 0:00:05.2]} 44... Qxh4 {[%clk 0:00:01]} 45. Qd6+ {[%clk 0:00:04.8]} 1-0

[Event "Early-Titled-Tuesday-Blitz-May-28-2024"]
[Site "Chess.com"]
[Date "2024.05.28"]
[Round "7"]
[White "secrethawk1"]
[Black "MiguelBestard1981"]
[Result "0-1"]
[WhiteElo "2404"]
[BlackElo "2286"]
[TimeControl "180+1"]
[EndTime "9:18:50 PDT"]
[Termination "MiguelBestard1981 won on time"]

1. Nf3 {[%clk 0:03:00.9]} 1... d5 {[%clk 0:02:58.6]} 2. e3 {[%clk 0:02:59.9]}
2... Bf5 {[%clk 0:02:57.2]} 3. c4 {[%clk 0:03:00.7]} 3... e6 {[%clk 0:02:56.8]}
4. Nc3 {[%clk 0:02:59.5]} 4... c6 {[%clk 0:02:56.8]} 5. d4 {[%clk 0:02:58.9]}
5... Nd7 {[%clk 0:02:53.8]} 6. Bd3 {[%clk 0:02:58.6]} 6... Bxd3 {[%clk
0:02:52.8]} 7. Qxd3 {[%clk 0:02:59.5]} 7... f5 {[%clk 0:02:51.7]} 8. c5 {[%clk
0:02:58.8]} 8... Ngf6 {[%clk 0:02:47.6]} 9. b4 {[%clk 0:02:59.4]} 9... Ne4
{[%clk 0:02:46.5]} 10. a4 {[%clk 0:02:58.8]} 10... a6 {[%clk 0:02:45.1]} 11. O-O
{[%clk 0:02:57.4]} 11... g5 {[%clk 0:02:44.3]} 12. Ne5 {[%clk 0:02:53.4]} 12...
Bg7 {[%clk 0:02:41.8]} 13. Bb2 {[%clk 0:02:47.6]} 13... Nxc3 {[%clk 0:02:39.9]}
14. Bxc3 {[%clk 0:02:43.8]} 14... Bxe5 {[%clk 0:02:39.9]} 15. dxe5 {[%clk
0:02:44.7]} 15... O-O {[%clk 0:02:32.1]} 16. f3 {[%clk 0:02:40.1]} 16... a5
{[%clk 0:02:27.1]} 17. e4 {[%clk 0:02:36.8]} 17... axb4 {[%clk 0:02:26.2]} 18.
Bxb4 {[%clk 0:02:36.1]} 18... fxe4 {[%clk 0:02:23.5]} 19. fxe4 {[%clk
0:02:35.2]} 19... Nxe5 {[%clk 0:02:16.2]} 20. Qh3 {[%clk 0:02:29.1]} 20... Qe7
{[%clk 0:02:07.8]} 21. exd5 {[%clk 0:02:16.7]} 21... exd5 {[%clk 0:02:03.5]} 22.
Rae1 {[%clk 0:02:07.8]} 22... Rxf1+ {[%clk 0:02:01.5]} 23. Rxf1 {[%clk
0:02:04.4]} 23... Rf8 {[%clk 0:02:01.1]} 24. Re1 {[%clk 0:02:02.6]} 24... Qf7
{[%clk 0:01:44.4]} 25. Qg3 {[%clk 0:01:54.9]} 25... Ng6 {[%clk 0:01:42.2]} 26.
h3 {[%clk 0:01:48.7]} 26... Qf4 {[%clk 0:01:40.3]} 27. Qf3 {[%clk 0:01:45.2]}
27... Qxf3 {[%clk 0:01:39.8]} 28. gxf3 {[%clk 0:01:44.9]} 28... Rxf3 {[%clk
0:01:40.4]} 29. Re8+ {[%clk 0:01:43.3]} 29... Rf8 {[%clk 0:01:40]} 30. Re6
{[%clk 0:01:40]} 30... Nf4 {[%clk 0:01:38.9]} 31. Rd6 {[%clk 0:01:38.8]} 31...
Nxh3+ {[%clk 0:01:38]} 32. Kh2 {[%clk 0:01:37.6]} 32... Nf4 {[%clk 0:01:37.5]}
33. Rd7 {[%clk 0:01:36.9]} 33... Rf7 {[%clk 0:01:36.4]} 34. Rd6 {[%clk
0:01:31.5]} 34... Re7 {[%clk 0:01:30.1]} 35. Bc3 {[%clk 0:01:28.1]} 35... Re2+
{[%clk 0:01:28.9]} 36. Kh1 {[%clk 0:01:27.1]} 36... g4 {[%clk 0:01:21.7]} 37.
Rd8+ {[%clk 0:01:21.4]} 37... Kf7 {[%clk 0:01:20.9]} 38. Rd7+ {[%clk 0:01:21.5]}
38... Kg6 {[%clk 0:01:20.4]} 39. Rxb7 {[%clk 0:01:04.1]} 39... h5 {[%clk
0:01:19.9]} 40. Rb1 {[%clk 0:00:56.1]} 40... g3 {[%clk 0:01:18.5]} 41. a5 {[%clk
0:00:47.3]} 41... g2+ {[%clk 0:01:17.5]} 42. Kh2 {[%clk 0:00:46.4]} 42... Nh3
{[%clk 0:01:15.4]} 43. Kxh3 {[%clk 0:00:40.6]} 43... Re3+ {[%clk 0:01:14.8]} 44.
Kxg2 {[%clk 0:00:40.7]} 44... Rxc3 {[%clk 0:01:15.5]} 45. Ra1 {[%clk 0:00:32.3]}
45... Re3 {[%clk 0:01:14.8]} 46. a6 {[%clk 0:00:32.1]} 46... Re8 {[%clk
0:01:15.4]} 47. a7 {[%clk 0:00:32.3]} 47... Ra8 {[%clk 0:01:16.1]} 48. Ra6
{[%clk 0:00:31.9]} 48... Kf5 {[%clk 0:01:14.9]} 49. Kf3 {[%clk 0:00:27.1]} 49...
h4 {[%clk 0:01:13.7]} 50. Ke3 {[%clk 0:00:22.8]} 50... h3 {[%clk 0:01:13.6]} 51.
Kf3 {[%clk 0:00:22.7]} 51... h2 {[%clk 0:01:13.2]} 52. Kg2 {[%clk 0:00:21.9]}
52... Ke5 {[%clk 0:01:13.7]} 53. Kxh2 {[%clk 0:00:20.6]} 53... Kd4 {[%clk
0:01:14.1]} 54. Rxc6 {[%clk 0:00:12]} 54... Rxa7 {[%clk 0:01:12.4]} 55. Kg3
{[%clk 0:00:11.9]} 55... Kc3 {[%clk 0:01:11.5]} 56. Kf2 {[%clk 0:00:04.4]} 56...
d4 {[%clk 0:01:10.4]} 57. Rd6 {[%clk 0:00:04.3]} 57... d3 {[%clk 0:01:09]} 58.
Ke1 {[%clk 0:00:01.8]} 58... Kc2 {[%clk 0:01:08.1]} 59. c6 {[%clk 0:00:01.4]}
59... Re7+ {[%clk 0:01:07.5]} 60. Kf1 {[%clk 0:00:01.2]} 60... d2 {[%clk
0:01:06.3]} 61. c7 {[%clk 0:00:01.5]} 61... Rxc7 {[%clk 0:01:04.8]} 62. Ke2
{[%clk 0:00:01.5]} 62... Re7+ {[%clk 0:01:04.4]} 63. Kf2 {[%clk 0:00:01]} 63...
d1=Q {[%clk 0:01:04.2]} 64. Rxd1 {[%clk 0:00:01]} 64... Kxd1 {[%clk 0:01:04.9]}
65. Kf3 {[%clk 0:00:01.2]} 65... Kd2 {[%clk 0:01:05.4]} 66. Kf4 {[%clk 0:00:01]}
66... Kd3 {[%clk 0:01:06.2]} 67. Kf5 {[%clk 0:00:01]} 67... Re4 {[%clk
0:01:06.3]} 68. Kf6 {[%clk 0:00:01]} 68... Kd4 {[%clk 0:01:07]} 69. Kf7 {[%clk
0:00:01]} 69... Kd5 {[%clk 0:01:07.9]} 70. Kf8 {[%clk 0:00:01]} 70... Re6 {[%clk
0:01:07.9]} 71. Kg8 {[%clk 0:00:00.8]} 71... Re7 {[%clk 0:01:06.9]} 0-1